Workbook

Sheet Templ
A1: 1
B4: Список участников соревнований | I4: Название соревнований
B5: № | C5: Гимнастка | D5: Год | E5: Разряд | F5: Город | G5: Тренер | J5: 1 | K5: 2 | L5: 3 | M5: 4 | N5: Оценка | O5: Сбавка | P5: Сумма | Q5: МЕСТО | T5: 1 | U5: 2 | V5: 3 | W5: 4 | X5: 5 | Y5: Оценка | Z5: Сбавка | AA5: Сумма | AB5: МЕСТО
B6: 1 | I6: D | N6: =(SUM(J6:M6)-(MIN(J6:M6)+MAX(J6:M6)))/2 -> 0 | P6: =SUM(N6:N7)-SUM(O6:O7) -> 0 | S6: D | Y6: =(SUM(T6:W6)-(MIN(T6:W6)+MAX(T6:W6)))/2 -> 0 | AA6: =SUM(Y6:Y7)-SUM(Z6:Z7) -> 0
B7: =B6+1 -> 2 | I7: E | N7: =(SUM(J7:M7)-(MIN(J7:M7)+MAX(J7:M7)))/2 -> 0 | S7: E | Y7: =(SUM(T7:X7)-(MIN(T7:X7)+MAX(T7:X7)))/3 -> 0
C15: Сводный протокол
B19: № | C19: Команда/Гимнастка | D19: г.р. | E19: Разряд | F19: Город | G19: Тренер | J19: 1 | K19: 2 | L19: 3 | M19: 4 | N19: Оценка | O19: Сбавка | P19: Сумма | Q19: МЕСТО
B20: 1 | I20: D1 | N20: =(SUM(J20:M20)-(MIN(J20:M20)+MAX(J20:M20)))/2 -> 0 | P20: =SUM(N20:N23)-SUM(O20:O23) -> 0
I21: D2 | N21: 0
I22: A | N22: =(SUM(J22:M22)-(MIN(J22:M22)+MAX(J22:M22)))/2 -> 0
I23: E | N23: =(SUM(J23:M23)-(MIN(J23:M23)+MAX(J23:M23)))/2 -> 0
C30: Главный судья
C32: Главный секретарь

Sheet Data
C2: Вид соревнований | D2: Индивидуальные
C3: Число участников | D3: 8
C5: Количество видов: | D5: 1
C6: Вид оценки: | D6: 5
B8: Список участников соревнований | I8: Жеребьевка
B9: № | C9: Гимнастка | D9: Год | E9: Разряд | F9: Город | G9: Тренер | I9: № | J9: Гимнастка | K9: Год | L9: Разряд | M9: Город
B10: 1 | C10: Serdyukova Anastasiya | D10: 1997 | E10: 09590 | F10: UZB | I10: =$B$17 -> 8 | J10: =$C$17 -> Duquesne Cartaya /Yansy De La Caridad | K10: =$D$17 -> 1997 | L10: =$E$17 -> 23132 | M10: =$F$17 -> CUB
B11: =B10+1 -> 2 | C11: Polishchuk Viktoriia | D11: 1994 | E11: 29944 | F11: RUS Irkutsk | I11: =$B$10 -> 1 | J11: =$C$10 -> Serdyukova Anastasiya | K11: =$D$10 -> 1997 | L11: =$E$10 -> 09590 | M11: =$F$10 -> UZB
B12: 3 | C12: Liubomeiscaia Iuliana | D12: 1996 | E12: 16583 | F12: MDA | I12: =$B$11 -> 2 | J12: =$C$11 -> Polishchuk Viktoriia | K12: =$D$11 -> 1994 | L12: =$E$11 -> 29944 | M12: =$F$11 -> RUS Irkutsk
B13: 4 | C13: Milacic Milena | D13: 1995 | E13: 18878 | F13: SER | I13: =$B$14 -> 5 | J13: =$C$14 -> Hamrikova Nataly | K13: =$D$14 -> 1993 | L13: =$E$14 -> 10481 | M13: =$F$14 -> CZE
B14: 5 | C14: Hamrikova Nataly | D14: 1993 | E14: 10481 | F14: CZE | I14: =$B$12 -> 3 | J14: =$C$12 -> Liubomeiscaia Iuliana | K14: =$D$12 -> 1996 | L14: =$E$12 -> 16583 | M14: =$F$12 -> MDA
B15: 6 | C15: Sherstuk Irina | D15: 1998 | F15: UKR | I15: =$B$16 -> 7 | J15: =$C$16 -> Omirou Irena | K15: =$D$16 -> 1998 | L15: =$E$16 -> 18614 | M15: =$F$16 -> CYP
B16: 7 | C16: Omirou Irena | D16: 1998 | E16: 18614 | F16: CYP | I16: =$B$13 -> 4 | J16: =$C$13 -> Milacic Milena | K16: =$D$13 -> 1995 | L16: =$E$13 -> 18878 | M16: =$F$13 -> SER
B17: 8 | C17: Duquesne Cartaya /Yansy De La Caridad | D17: 1997 | E17: 23132 | F17: CUB | I17: =$B$15 -> 6 | J17: =$C$15 -> Sherstuk Irina | K17: =$D$15 -> 1998 | L17: =$E$15 ->  | M17: =$F$15 -> UKR

Sheet Вид 1
D1: 2 | E1: 9 | F1: 13
B9: № | C9: Гимнастка | E9: 1 | F9: 2 | G9: 3 | H9: 4 | I9: 5 | J9: Оценка | K9: Сбавка | L9: Сумма | M9: МЕСТО
B10: =Data!$B$17 -> 8 | C10: =Data!$C$17 -> Duquesne Cartaya /Yansy De La Caridad | D10: D | E10: 5.7 | F10: 6.5 | G10: 6 | H10: 6.5 | J10: =(SUM(E10:H10)-(MIN(E10:H10)+MAX(E10:H10)))/2 -> 6.25 | L10: =SUM(J10:J11)-SUM(K10:K11) -> 13.81666667 | M10: =RANK(L10,$L$10:$L$25,0) -> 7
D11: E | E11: 8.2 | F11: 7.4 | G11: 7.7 | H11: 7.5 | I11: 7.5 | J11: =(SUM(E11:I11)-(MIN(E11:I11)+MAX(E11:I11)))/3 -> 7.566666667
B12: =Data!$B$10 -> 1 | C12: =Data!$C$10 -> Serdyukova Anastasiya | D12: D | E12: 8 | F12: 8.6 | G12: 7.9 | H12: 8.6 | J12: =(SUM(E12:H12)-(MIN(E12:H12)+MAX(E12:H12)))/2 -> 8.3 | L12: =SUM(J12:J13)-SUM(K12:K13) -> 16.6 | M12: =RANK(L12,$L$10:$L$25,0) -> 2
D13: E | E13: 8.1 | F13: 8.3 | G13: 8.1 | H13: 8.6 | I13: 8.5 | J13: =(SUM(E13:I13)-(MIN(E13:I13)+MAX(E13:I13)))/3 -> 8.3
B14: =Data!$B$11 -> 2 | C14: =Data!$C$11 -> Polishchuk Viktoriia | D14: D | E14: 8.7 | F14: 8.2 | G14: 7.8 | H14: 8.8 | J14: =(SUM(E14:H14)-(MIN(E14:H14)+MAX(E14:H14)))/2 -> 8.45 | L14: =SUM(J14:J15)-SUM(K14:K15) -> 16.95 | M14: =RANK(L14,$L$10:$L$25,0) -> 1
D15: E | E15: 8.9 | F15: 8.5 | G15: 8.6 | H15: 8.4 | I15: 8.3 | J15: =(SUM(E15:I15)-(MIN(E15:I15)+MAX(E15:I15)))/3 -> 8.5
B16: =Data!$B$14 -> 5 | C16: =Data!$C$14 -> Hamrikova Nataly | D16: D | E16: 7.4 | F16: 7 | G16: 5.6 | H16: 6.8 | J16: =(SUM(E16:H16)-(MIN(E16:H16)+MAX(E16:H16)))/2 -> 6.9 | L16: =SUM(J16:J17)-SUM(K16:K17) -> 15 | M16: =RANK(L16,$L$10:$L$25,0) -> 3
D17: E | E17: 8.4 | F17: 8 | G17: 8.3 | H17: 8 | I17: 7.4 | J17: =(SUM(E17:I17)-(MIN(E17:I17)+MAX(E17:I17)))/3 -> 8.1
B18: =Data!$B$12 -> 3 | C18: =Data!$C$12 -> Liubomeiscaia Iuliana | D18: D | E18: 6.5 | F18: 7.2 | G18: 6.4 | H18: 7.3 | J18: =(SUM(E18:H18)-(MIN(E18:H18)+MAX(E18:H18)))/2 -> 6.85 | L18: =SUM(J18:J19)-SUM(K18:K19) -> 14.48333333 | M18: =RANK(L18,$L$10:$L$25,0) -> 5
D19: E | E19: 8.1 | F19: 7.8 | G19: 8.1 | H19: 7.9 | I19: 7.8 | J19: =(SUM(E19:I19)-(MIN(E19:I19)+MAX(E19:I19)))/3 -> 7.933333333 | K19: 0.3
B20: =Data!$B$16 -> 7 | C20: =Data!$C$16 -> Omirou Irena | D20: D | E20: 5.4 | F20: 6 | G20: 5.5 | H20: 6.3 | J20: =(SUM(E20:H20)-(MIN(E20:H20)+MAX(E20:H20)))/2 -> 5.75 | L20: =SUM(J20:J21)-SUM(K20:K21) -> 13.38333333 | M20: =RANK(L20,$L$10:$L$25,0) -> 8
D21: E | E21: 7.6 | F21: 7.5 | G21: 7.8 | H21: 7.9 | I21: 7.5 | J21: =(SUM(E21:I21)-(MIN(E21:I21)+MAX(E21:I21)))/3 -> 7.633333333
B22: =Data!$B$13 -> 4 | C22: =Data!$C$13 -> Milacic Milena | D22: D | E22: 6 | F22: 6.6 | G22: 5.8 | H22: 6.4 | J22: =(SUM(E22:H22)-(MIN(E22:H22)+MAX(E22:H22)))/2 -> 6.2 | L22: =SUM(J22:J23)-SUM(K22:K23) -> 13.86666667 | M22: =RANK(L22,$L$10:$L$25,0) -> 6
D23: E | E23: 7.4 | F23: 7.8 | G23: 7.7 | H23: 7.6 | I23: 7.7 | J23: =(SUM(E23:I23)-(MIN(E23:I23)+MAX(E23:I23)))/3 -> 7.666666667
B24: =Data!$B$15 -> 6 | C24: =Data!$C$15 -> Sherstuk Irina | D24: D | E24: 7 | F24: 6.9 | G24: 6.7 | H24: 7.2 | J24: =(SUM(E24:H24)-(MIN(E24:H24)+MAX(E24:H24)))/2 -> 6.95 | L24: =SUM(J24:J25)-SUM(K24:K25) -> 14.88333333 | M24: =RANK(L24,$L$10:$L$25,0) -> 4
D25: E | E25: 7.9 | F25: 7.5 | G25: 8.2 | H25: 7.9 | I25: 8 | J25: =(SUM(E25:I25)-(MIN(E25:I25)+MAX(E25:I25)))/3 -> 7.933333333

Sheet Protocol
C8: Сводный протокол
B9: № | C9: Гимнастка | D9: Год | E9: Город | F9: Тренер | G9: Вид 1 | H9: Место
B10: 1 | C10: =IF(ISBLANK(Data!$C$11), "", Data!$C$11) -> Polishchuk Viktoriia | D10: =IF(ISBLANK(Data!$D$11), "", Data!$D$11) -> 1994 | E10: =IF(ISBLANK(Data!$F$11), "", Data!$F$11) -> RUS Irkutsk | F10: =IF(ISBLANK(Data!$G$11), "", Data!$G$11) ->  | G10: ='Вид 1'!$L$14 -> 16.95 | H10: =RANK(#REF!,#REF!,0) -> 
B11: 2 | C11: =IF(ISBLANK(Data!$C$10), "", Data!$C$10) -> Serdyukova Anastasiya | D11: =IF(ISBLANK(Data!$D$10), "", Data!$D$10) -> 1997 | E11: =IF(ISBLANK(Data!$F$10), "", Data!$F$10) -> UZB | F11: =IF(ISBLANK(Data!$G$10), "", Data!$G$10) ->  | G11: ='Вид 1'!$L$12 -> 16.6 | H11: =RANK(#REF!,#REF!,0) -> 
B12: 3 | C12: =IF(ISBLANK(Data!$C$14), "", Data!$C$14) -> Hamrikova Nataly | D12: =IF(ISBLANK(Data!$D$14), "", Data!$D$14) -> 1993 | E12: =IF(ISBLANK(Data!$F$14), "", Data!$F$14) -> CZE | F12: =IF(ISBLANK(Data!$G$14), "", Data!$G$14) ->  | G12: ='Вид 1'!$L$16 -> 15 | H12: =RANK(#REF!,#REF!,0) -> 
B13: 4 | C13: =IF(ISBLANK(Data!$C$15), "", Data!$C$15) -> Sherstuk Irina | D13: =IF(ISBLANK(Data!$D$15), "", Data!$D$15) -> 1998 | E13: =IF(ISBLANK(Data!$F$15), "", Data!$F$15) -> UKR | F13: =IF(ISBLANK(Data!$G$15), "", Data!$G$15) ->  | G13: ='Вид 1'!$L$24 -> 14.88333333 | H13: =RANK(#REF!,#REF!,0) -> 
B14: 5 | C14: =IF(ISBLANK(Data!$C$12), "", Data!$C$12) -> Liubomeiscaia Iuliana | D14: =IF(ISBLANK(Data!$D$12), "", Data!$D$12) -> 1996 | E14: =IF(ISBLANK(Data!$F$12), "", Data!$F$12) -> MDA | F14: =IF(ISBLANK(Data!$G$12), "", Data!$G$12) ->  | G14: ='Вид 1'!$L$18 -> 14.48333333 | H14: =RANK(#REF!,#REF!,0) -> 
B15: 6 | C15: =IF(ISBLANK(Data!$C$13), "", Data!$C$13) -> Milacic Milena | D15: =IF(ISBLANK(Data!$D$13), "", Data!$D$13) -> 1995 | E15: =IF(ISBLANK(Data!$F$13), "", Data!$F$13) -> SER | F15: =IF(ISBLANK(Data!$G$13), "", Data!$G$13) ->  | G15: ='Вид 1'!$L$22 -> 13.86666667 | H15: =RANK(#REF!,#REF!,0) -> 
B16: 7 | C16: =IF(ISBLANK(Data!$C$17), "", Data!$C$17) -> Duquesne Cartaya /Yansy De La Caridad | D16: =IF(ISBLANK(Data!$D$17), "", Data!$D$17) -> 1997 | E16: =IF(ISBLANK(Data!$F$17), "", Data!$F$17) -> CUB | F16: =IF(ISBLANK(Data!$G$17), "", Data!$G$17) ->  | G16: ='Вид 1'!$L$10 -> 13.81666667 | H16: =RANK(#REF!,#REF!,0) -> 
B17: 8 | C17: =IF(ISBLANK(Data!$C$16), "", Data!$C$16) -> Omirou Irena | D17: =IF(ISBLANK(Data!$D$16), "", Data!$D$16) -> 1998 | E17: =IF(ISBLANK(Data!$F$16), "", Data!$F$16) -> CYP | F17: =IF(ISBLANK(Data!$G$16), "", Data!$G$16) ->  | G17: ='Вид 1'!$L$20 -> 13.38333333 | H17: =RANK(#REF!,#REF!,0) -> 
C20: Главный судья
C22: Главный секретарь
